[Event "4th Memorial Warakomska-B 2020"]
[Site "Suwalki"]
[Date "2020.08.08"]
[Round "3.8"]
[White "Sapeta, Robert"]
[Black "Lukasik, Zuzanna"]
[Result "0-1"]
[ECO "B22"]
[WhiteElo "1895"]
[BlackElo "1553"]
[Annotator "NA RC"]
[PlyCount "92"]
[EventDate "2020.08.06"]
[EventType "swiss"]
[EventCountry "POL"]
[SourceTitle "playchess.com"]
[Source "ChessBase"]
[SourceQuality "1"]
[TimeControl "40/5400+30:1800+30"]

{[%evp 8,85,-24,-17,2,-46,0,-42,19,18,28,-4,-4,12,13,24,17,32767,32767,10,9,20,22,0,43,39,43,0,32767,32767,32767,-56,-42,-42,-44,-47,0,32767,0,-22,127,32767,32767,32767,32767,32767,18,32767,0,32767,32767,0,0,12,20,0,12,14,0,0,0,0,0,-39,-59,-62,-50,-39,-5,-226,-210,32767,-378,32767,-452,-441,32767,-5289,-2018,-5422]} 1. e4 {[%emt 0:00:00]} c5 {[%emt 0:00:00]} 2. c3 {[%emt 0:00:04]} d5 {[%emt 0:00:00]} 3. d3 {[%emt 0:00:26]} e6 {[%emt 0:00:36]} 4. Nd2 {[%emt 0:01:10]} Nc6 {[%emt 0:01:29]} 5. Ngf3 {[%emt 0:01:07]} Bd6 {[%emt 0:03:32]} 6. Qe2 {[%emt 0:01:08] [#] B40: Sicilian: 2...e6, Unusual lines.} d4 $146 {[%emt 0:04:28]} ({Predecessor:} 6... Nge7 7. g3 O-O 8. Bg2 a5 9. O-O b6 10. a4 Ba6 11. Rd1 Qd7 12. Nb1 dxe4 13. Qxe4 {½-½ (52) Fries Nielsen,J (2371)-Grivas,E (2413) Aarhus 2019}) 7. Nc4 {[%emt 0:10:31]} b5 {[%emt 0:05:37]} 8. Nxd6+ {[%emt 0:00:38]} Qxd6 {[%emt 0:00:13]} 9. e5 {[%emt 0:13:38]} Qc7 {[%emt 0:04:31]} 10. cxd4 {[%emt 0:35:57]} cxd4 {[%emt 0:05:40]} 11. Bd2 {[%emt 0:01:11]} Bb7 {[%emt 0:02:54]} 12. Rc1 {[%emt 0:03:25]} Qd7 {[%emt 0:00:38]} 13. g3 {[%emt 0:02:26]} Nge7 {[%emt 0:01:31]} 14. Bg2 {[%emt 0:00:18]} h6 {[%emt 0:00:57]} 15. Rc5 {[%emt 0:02:45]} a6 {[%emt 0:03:58]} 16. O-O {[%emt 0:15:35]} O-O {[%emt 0:05:25]} 17. Qe4 {[%emt 0:02:46]} Rfd8 {[%emt 0:07:38]} 18. Qh4 Ng6 19. Qh5 {[%emt 0:06:08]} (19. Qg4 $11) 19... Nce7 {[%emt 0:06:25]} 20. Rfc1 {[%emt 0:08:23]} Rac8 {[%emt 0:08:07]} 21. Qg4 {[%emt 0:08:53]} Bxf3 {[%emt 0:08:37]} (21... Rxc5 $15 22. Rxc5 Bd5) 22. Bxf3 {[%emt 0:01:10]} Rxc5 {[%emt 0:00:45]} 23. Rxc5 {[%emt 0:00:00]} Rc8 {[%emt 0:03:41]} (23... Qa7 $11 24. b4 Qb8) 24. Rxc8+ {[%emt 0:00:10]} Nxc8 {[%emt 0:00:11]} 25. Qe4 {[%emt 0:01:36]} Qc7 {[%emt 0:14:41]} 26. Qb7 {[%emt 0:02:46]} Qc2 {[%emt 0:15:11]} 27. Bc3 {[%emt 0:00:14]} Nce7 {[%emt 0:06:35]} 28. Bxd4 Qxd3 {[%emt 0:00:34]} 29. Qe4 {[%emt 0:00:55]} Qc4 {[%emt 0:01:15]} 30. b3 {[%emt 0:00:24]} Qc1+ {[%emt 0:02:17]} 31. Kg2 {[%emt 0:00:09]} Nd5 {[%emt 0:00:42]} 32. h4 {[%emt 0:01:05]} Qd2 {[%emt 0:02:03]} 33. h5 {[%emt 0:00:22]} Nge7 {[%emt 0:00:30]} 34. Bc5 {[%emt 0:00:57]} Nc6 {[%emt 0:01:49]} 35. a4 {[%emt 0:01:29]} Qc3 {[%emt 0:00:45] Double Attack} 36. axb5 {[%emt 0:00:15]} axb5 {[%emt 0:00:13]} ({Reject} 36... Nxe5 $6 37. bxa6 Nxf3 38. a7 $16) 37. Bd6 {[%emt 0:00:59]} Qxb3 {[%emt 0:05:05]} 38. Qh4 $2 {[%emt 0:01:20]} (38. Be2 $11 {and White is okay.}) 38... Qc4 {[%emt 0:01:34]} 39. Qh1 {[%emt 0:00:44]} b4 {[%emt 0:01:04]} 40. Qa1 {[%emt 0:00:00]} b3 {[%emt 0:00:00]} 41. Qa8+ {[%emt 0:08:07]} Kh7 {[%emt 0:02:36]} 42. Qe8 {[%emt 0:01:19]} (42. Qb7 $142 Qc2 43. Qxf7) 42... b2 {[%emt 0:04:03]} 43. Qxf7 $19 {[%emt 0:00:32]} b1=Q {[%emt 0:01:24]} 44. Bf8 {[%emt 0:01:12]} Qcf1+ {[%emt 0:03:30]} 45. Kh2 {[%emt 0:00:21]} Qxf2+ {[%emt 0:00:24]} 46. Kh3 {[%emt 0:01:13]} Qf5+ {[%emt 0:00:38]} 0-1

[Event "4th Memorial Warakomska-B 2020"]
[Site "Suwalki"]
[Date "2020.08.08"]
[Round "3.9"]
[White "Cwiek, Ryszard"]
[Black "Sapinski, Sebastian"]
[Result "1-0"]
[ECO "C03"]
[WhiteElo "1867"]
[BlackElo "1603"]
[Annotator "NA RC"]
[PlyCount "139"]
[EventDate "2020.08.06"]
[EventType "swiss"]
[EventCountry "POL"]
[SourceTitle "playchess.com"]
[Source "ChessBase"]
[SourceQuality "1"]
[TimeControl "40/5400+30:1800+30"]

{[%evp 8,138,63,40,67,29,47,66,53,64,65,63,65,66,74,41,51,30,68,35,79,56,69,54,83,29,37,36,39,-34,0,-3,-8,-4,-16,0,-12,-10,0,-18,-25,-93,-76,-87,-65,-78,-90,-95,-14,-13,-11,-15,0,0,0,2,6,5,20,-1,0,0,0,0,18,6,12,21,8,8,56,47,32767,32767,32767,0,100,101,144,132,160,32767,32767,32767,32767,137,131,66,103,68,32767,66,32767,32767,32767,32767,32767,32767,32767,32767,32767,32767,32767,32767,32767,32767,32767,32767,32767,32767,29983,29984,29983,29985,29985,29986,32767,32767,32767,32767,29988,29989,29989,29990,29992,29993,29993,29992,29994,29992,27999,29996,29999]} 1. e4 {[%emt 0:00:00]} e6 {[%emt 0:00:00]} 2. d4 {[%emt 0:00:00]} d5 {[%emt 0:00:00]} 3. Nd2 {[%emt 0:00:40]} dxe4 {[%emt 0:00:27]} 4. Nxe4 {[%emt 0:00:07]} Bd7 {[%emt 0:00:03]} 5. Bd3 {[%emt 0:01:28]} Bc6 {[%emt 0:00:28]} 6. Ne2 {[%emt 0:01:07] C10: French with 3 Nc3: Unusual Black 3rd moves and 3...dxe4.} Bxe4 {[%emt 0:01:13]} 7. Bxe4 {[%emt 0:00:07]} c6 {[%emt 0:00:03]} 8. g3 {[%emt 0:02:46]} Nf6 {[%emt 0:01:04]} 9. Bg2 {[%emt 0:00:12]} Nbd7 {[%emt 0:00:21]} 10. O-O {[%emt 0:01:32]} Qc7 {[%emt 0:01:55]} 11. a4 {[%emt 0:04:19] [#]} Rd8 $146 {[%emt 0:01:37]} ({Predecessor:} 11... Be7 12. Bf4 Bd6 13. b4 Nd5 14. Bxd6 Qxd6 15. b5 O-O 16. c4 N5f6 17. Qb3 Rac8 {1-0 (52) Ossolinski,Z (1738)-Sapinski,S (1371) Szczyrk 2017}) 12. c3 {[%emt 0:05:22]} Bd6 {[%emt 0:03:01]} 13. b4 {[%emt 0:05:23]} e5 {[%emt 0:02:11]} 14. Qb3 {[%emt 0:06:18]} O-O {[%emt 0:02:52]} 15. Be3 {[%emt 0:05:07]} b6 {[%emt 0:02:35]} 16. Qc4 {[%emt 0:11:13]} Rc8 {[%emt 0:07:22]} 17. Rfd1 {[%emt 0:04:52]} Rfe8 {[%emt 0:07:43]} 18. d5 {[%emt 0:16:49]} (18. Qb3 $14) 18... cxd5 {[%emt 0:09:33]} 19. Qxc7 {[%emt 0:00:09]} Bxc7 {[%emt 0:00:07]} 20. Bxd5 {[%emt 0:00:06]} Nxd5 {[%emt 0:00:07]} 21. Rxd5 {[%emt 0:00:02]} Nf6 {[%emt 0:00:12]} 22. Rdd1 {[%emt 0:00:51]} Red8 {[%emt 0:01:47]} 23. c4 {[%emt 0:10:54]} Ng4 {[%emt 0:02:21]} 24. c5 {[%emt 0:08:00]} (24. Rac1 $11) 24... Nxe3 {[%emt 0:02:39]} 25. fxe3 {[%emt 0:00:01]} bxc5 {[%emt 0:00:16]} 26. bxc5 {[%emt 0:00:14]} Ba5 {[%emt 0:08:29]} 27. Rxd8+ {[%emt 0:01:30]} Rxd8 {[%emt 0:00:03]} (27... Bxd8 $17 28. Rc1 Rc6) 28. Kf2 {[%emt 0:01:03]} Rc8 {[%emt 0:01:43]} 29. Rb1 {[%emt 0:00:41]} f5 {[%emt 0:01:29]} 30. Rb5 {[%emt 0:02:54]} Bc7 {[%emt 0:08:42]} 31. Nc1 {[%emt 0:03:46]} Kf7 {[%emt 0:00:59]} 32. e4 {[%emt 0:03:25]} g6 {[%emt 0:02:07]} 33. Nb3 {[%emt 0:00:50]} Ke6 {[%emt 0:00:56]} 34. Rb7 {[%emt 0:02:04]} a5 {[%emt 0:02:29]} 35. Ke3 {[%emt 0:01:16]} f4+ {[%emt 0:00:59]} 36. gxf4 {[%emt 0:00:25]} exf4+ {[%emt 0:00:05]} 37. Kf3 {[%emt 0:00:16]} Ke5 {[%emt 0:00:56]} 38. Rb5 {[%emt 0:00:45]} Rd8 {[%emt 0:04:01]} 39. c6+ {[%emt 0:01:56]} Kf6 {[%emt 0:00:09]} 40. Ke2 {[%emt 0:00:00]} Re8 {[%emt 0:00:00]} 41. Kf3 {[%emt 0:06:23]} ({White should play} 41. Nc5 $1 $14) 41... Rd8 {[%emt 0:04:45] [#]} 42. Nc5 $1 {[%emt 0:06:40]} ({Of course not} 42. Nxa5 Rd3+ 43. Kg2 Rd4 $15) 42... Rd6 {[%emt 0:07:34]} ({Black should play} 42... h6) 43. e5+ $1 {[%emt 0:03:14] Decoy} Kxe5 {[%emt 0:00:08]} 44. Na6+ {[%emt 0:00:03]} Kd4 {[%emt 0:00:57]} 45. Nxc7 {[%emt 0:01:29]} Rxc6 {[%emt 0:00:04] [#]} 46. Na8 $1 {[%emt 0:05:11]} Rc2 {[%emt 0:03:29]} 47. Kxf4 {[%emt 0:01:14]} Rxh2 {[%emt 0:00:34]} 48. Rxa5 {[%emt 0:00:30]} Rf2+ {[%emt 0:02:16]} 49. Kg5 {[%emt 0:03:19]} Rf5+ {[%emt 0:05:59]} 50. Rxf5 {[%emt 0:00:08]} gxf5 {[%emt 0:00:04]} 51. Nb6 {[%emt 0:01:16]} Kc5 {[%emt 0:01:20]} 52. a5 {[%emt 0:00:07]} Kb5 {[%emt 0:00:04]} 53. Nc4 {[%emt 0:00:06]} Ka6 {[%emt 0:00:36]} 54. Kxf5 {[%emt 0:00:06]} Kb5 {[%emt 0:00:10]} 55. Kg5 {[%emt 0:00:06]} Ka6 {[%emt 0:00:07]} 56. Kh6 {[%emt 0:00:08]} Kb5 {[%emt 0:00:02]} 57. Kxh7 {[%emt 0:00:06]} Ka6 {[%emt 0:00:02]} 58. Kg6 {[%emt 0:00:13]} Kb5 {[%emt 0:00:06]} 59. Kf5 {[%emt 0:00:43]} Ka6 {[%emt 0:00:10]} 60. Ke6 {[%emt 0:00:06]} Ka7 {[%emt 0:00:25]} 61. Kd5 {[%emt 0:00:15]} Kb7 {[%emt 0:00:20]} 62. Kc5 {[%emt 0:00:05]} Ka6 {[%emt 0:00:05]} 63. Kb4 {[%emt 0:00:04]} Kb7 {[%emt 0:00:16]} 64. Kb5 {[%emt 0:00:07]} Ka7 {[%emt 0:00:02]} 65. a6 {[%emt 0:00:22]} Ka8 {[%emt 0:00:21]} 66. Kb6 {[%emt 0:00:06]} Kb8 {[%emt 0:00:02]} 67. Na3 {[%emt 0:00:08]} Ka8 {[%emt 0:00:07]} 68. Nb5 {[%emt 0:00:05]} Kb8 {[%emt 0:00:07]} 69. a7+ {[%emt 0:00:09]} Ka8 {[%emt 0:00:05]} 70. Nc7# {[%emt 0:00:06]} 1-0

[Event "4th Memorial Warakomska-B 2020"]
[Site "Suwalki"]
[Date "2020.08.08"]
[Round "3.10"]
[White "Pieczulis, Hubert"]
[Black "Czech, Mieczyslaw"]
[Result "0-1"]
[ECO "A04"]
[WhiteElo "1486"]
[BlackElo "1863"]
[Annotator "NA RC"]
[PlyCount "96"]
[EventDate "2020.08.06"]
[EventType "swiss"]
[EventCountry "POL"]
[SourceTitle "playchess.com"]
[Source "ChessBase"]
[SourceQuality "1"]
[TimeControl "40/5400+30:1800+30"]

{[%evp 8,93,22,22,45,22,23,23,23,4,25,8,2,4,66,39,41,0,44,22,29,31,26,17,59,68,64,-33,82,21,40,19,81,46,118,111,114,59,83,0,115,0,108,62,132,146,152,0,0,0,0,0,45,43,121,93,650,66,55,0,0,-150,-179,-165,-27,-51,0,0,-15,-88,-71,-75,0,0,0,-18,-26,-413,-472,-623,-674,-1825,-635,-1108,-2291,-1473,-2117,-2321]} 1. Nf3 {[%emt 0:00:00]} c5 {[%emt 0:00:00]} 2. e3 {[%emt 0:00:00]} Nf6 {[%emt 0:00:29]} 3. d4 {[%emt 0:00:56]} cxd4 {[%emt 0:02:11]} 4. exd4 {[%emt 0:00:32]} g6 {[%emt 0:00:51]} 5. c3 {[%emt 0:03:47]} Bg7 {[%emt 0:00:42]} 6. Bc4 {[%emt 0:01:50] A46: 1 d4 Nf6 2 Nf3 e6: Torre, London and Colle Systems.} O-O {[%emt 0:00:44]} 7. O-O {[%emt 0:00:49]} d5 {[%emt 0:01:05]} 8. Bd3 {[%emt 0:00:59]} Nc6 {[%emt 0:02:23]} 9. Nbd2 {[%emt 0:04:12]} Re8 {[%emt 0:02:09]} 10. Re1 {[%emt 0:00:46] [#]} e6 $146 {[%emt 0:01:26]} ({Predecessor:} 10... Nh5 11. Nf1 Qd6 12. Ng3 Nxg3 13. hxg3 Bg4 14. Be3 Rac8 15. Qa4 Bd7 16. Bf4 Qf6 17. Qb3 Nd8 18. Qxd5 h6 19. Qxd7 {1-0 (19) Kaptsan,A (2170)-Rasmussen,B (2240) Winnipeg 1999}) 11. Ne5 {[%emt 0:03:23]} Nd7 {[%emt 0:01:52]} 12. f4 {[%emt 0:00:27]} Nf8 {[%emt 0:06:09]} 13. Ndf3 {[%emt 0:01:50]} f6 {[%emt 0:00:42]} 14. Nxc6 {[%emt 0:01:27]} bxc6 {[%emt 0:00:17]} 15. Qc2 {[%emt 0:09:09]} Bd7 {[%emt 0:01:15]} 16. b4 {[%emt 0:02:51]} a5 {[%emt 0:01:39]} 17. Ba3 {[%emt 0:00:32]} (17. Bd2 $14) 17... a4 {[%emt 0:02:23]} (17... Qc7 $11) 18. Bb2 {[%emt 0:09:10]} Qb6 {[%emt 0:00:55]} 19. Kh1 a3 {[%emt 0:00:51]} 20. Bc1 {[%emt 0:00:42]} Kf7 {[%emt 0:06:20]} (20... Bc8 $14) 21. Qb3 {[%emt 0:00:46]} Qa7 {[%emt 0:00:46]} 22. Qd1 {[%emt 0:00:31]} Qb6 $1 $11 {[%emt 0:02:04]} 23. Qb3 {[%emt 0:00:07]} (23. Rb1 $16) 23... Qa7 $1 {[%emt 0:01:01]} 24. Qd1 {[%emt 0:00:07]} (24. c4 $16) 24... Qc7 {[%emt 0:02:16]} 25. g3 {[%emt 0:01:30]} e5 {[%emt 0:01:38]} ({Black should play} 25... Kg8 $14) 26. fxe5 {[%emt 0:00:53]} fxe5 {[%emt 0:00:05]} 27. Ng5+ {[%emt 0:00:19]} ({White should play} 27. Nxe5+ $16 Kg8 28. Bf4) 27... Kg8 {[%emt 0:01:32]} 28. dxe5 $1 {[%emt 0:01:50]} Bxe5 {[%emt 0:04:07]} 29. Bd2 {[%emt 0:01:23]} Rad8 {[%emt 0:06:50]} 30. Qf3 {[%emt 0:02:32]} Re7 {[%emt 0:12:14] [#]} (30... Bc8 $14) 31. Bf4 $1 {[%emt 0:02:17]} Be8 $2 {[%emt 0:03:58] [#]} (31... Rde8 $16) 32. Bxe5 $2 {[%emt 0:04:19]} (32. Rxe5 $1 $18 Rxe5 33. Rf1) 32... Rxe5 {[%emt 0:01:45]} 33. Rf1 {[%emt 0:00:26]} (33. Kg2 $16) 33... Qe7 {[%emt 0:02:38]} 34. Nh3 {[%emt 0:01:15]} (34. Qf4 $1 $11) 34... Re3 {[%emt 0:02:32]} 35. Qd1 {[%emt 0:00:45]} Bd7 $2 {[%emt 0:02:26]} ({Black should try} 35... d4 $19 36. Qb3+ Kh8) 36. Nf4 {[%emt 0:00:44]} Re8 {[%emt 0:00:54]} 37. Ng2 {[%emt 0:00:54]} Re5 {[%emt 0:00:35]} 38. Re1 {[%emt 0:00:34]} (38. Qa4 $11 {keeps the balance.}) 38... Bh3 {[%emt 0:01:08]} 39. Rxe5 {[%emt 0:00:20]} Bxg2+ {[%emt 0:00:00]} (39... Qxe5 $17 40. Nf4 Bd7) 40. Kxg2 {[%emt 0:00:00]} Qxe5 {[%emt 0:00:00]} 41. Qc1 {[%emt 0:02:18]} Nd7 {[%emt 0:02:50]} 42. c4 $2 {[%emt 0:07:27]} (42. Qd2 $15) 42... Qd4 {[%emt 0:01:35]} 43. Bf1 {[%emt 0:01:46]} Ne5 {[%emt 0:04:40]} 44. cxd5 {[%emt 0:00:51]} cxd5 {[%emt 0:00:43]} (44... Qe4+ $142 45. Kh3 Nf3) 45. Rb1 {[%emt 0:00:56]} Qe4+ {[%emt 0:01:04]} 46. Kg1 {[%emt 0:00:20]} Nf3+ {[%emt 0:01:23]} 47. Kf2 $19 {[%emt 0:00:11]} Nxh2 {[%emt 0:01:49]} 48. b5 {[%emt 0:00:16]} Rf8+ {[%emt 0:02:56]} 0-1

[Event "4th Memorial Warakomska-B 2020"]
[Site "Suwalki"]
[Date "2020.08.08"]
[Round "3.11"]
[White "Milanowski, Jan"]
[Black "Kolcon, Waclaw"]
[Result "1-0"]
[ECO "B21"]
[WhiteElo "1787"]
[BlackElo "1235"]
[Annotator "NA RC"]
[PlyCount "59"]
[EventDate "2020.08.06"]
[EventType "swiss"]
[EventCountry "POL"]
[SourceTitle "playchess.com"]
[Source "ChessBase"]
[SourceQuality "1"]
[TimeControl "40/5400+30:1800+30"]

1. e4 {[%emt 0:00:00]} c5 {[%emt 0:00:00]} 2. f4 {[%emt 0:00:46]} g6 {[%emt 0:04:34]} 3. Nf3 {[%emt 0:00:23]} Bg7 {[%emt 0:01:09]} 4. c3 {[%emt 0:01:22]} d6 {[%emt 0:03:05]} 5. d3 {[%emt 0:04:30]} e6 {[%emt 0:01:27]} 6. Be2 {[%emt 0:01:43]} Ne7 {[%emt 0:01:21]} 7. Nbd2 {[%emt 0:04:13]} Nbc6 {[%emt 0:02:24]} 8. O-O {[%emt 0:08:12]} O-O {[%emt 0:01:48]} 9. a4 {[%emt 0:07:43]} b6 {[%emt 0:10:23]} 10. Qc2 {[%emt 0:08:07]} Bb7 11. g4 {[%emt 0:11:07]} Qd7 {[%emt 0:33:26]} 12. Rf2 {[%emt 0:00:30]} d5 {[%emt 0:06:09]} 13. Nf1 {[%emt 0:01:25]} f5 {[%emt 0:06:10]} 14. gxf5 {[%emt 0:05:55]} exf5 {[%emt 0:01:39]} 15. e5 {[%emt 0:00:44]} Nd8 {[%emt 0:00:16]} 16. d4 {[%emt 0:04:37]} Ne6 {[%emt 0:01:44]} 17. Ng5 {[%emt 0:09:36]} c4 {[%emt 0:10:59]} 18. Nxe6 {[%emt 0:01:29]} Qxe6 {[%emt 0:00:02]} 19. Bf3 {[%emt 0:01:40]} a6 {[%emt 0:00:39]} 20. Ne3 {[%emt 0:00:40]} b5 {[%emt 0:00:15]} 21. b3 {[%emt 0:01:32]} Bc6 {[%emt 0:02:13]} 22. Ba3 {[%emt 0:00:48]} Rfe8 {[%emt 0:00:10]} 23. Bxe7 {[%emt 0:05:37]} Rxe7 {[%emt 0:00:09]} 24. axb5 {[%emt 0:00:08]} axb5 {[%emt 0:01:05]} 25. Rxa8+ {[%emt 0:00:13]} Bxa8 {[%emt 0:00:29]} 26. bxc4 {[%emt 0:00:05]} bxc4 {[%emt 0:04:36]} 27. Nxc4 {[%emt 0:00:08]} Ra7 {[%emt 0:03:29]} 28. Ne3 {[%emt 0:00:26]} Bf8 {[%emt 0:00:30]} 29. Qb3 {[%emt 0:04:11]} Ra3 {[%emt 0:02:06]} 30. Bxd5 {[%emt 0:01:03]} 1-0

[Event "4th Memorial Warakomska-B 2020"]
[Site "Suwalki"]
[Date "2020.08.08"]
[Round "3.12"]
[White "Borowik, Wojciech"]
[Black "Towarnicka, Izabela"]
[Result "1-0"]
[ECO "D37"]
[WhiteElo "1769"]
[BlackElo "1397"]
[Annotator "NA RC"]
[PlyCount "95"]
[EventDate "2020.08.06"]
[EventType "swiss"]
[EventCountry "POL"]
[SourceTitle "playchess.com"]
[Source "ChessBase"]
[SourceQuality "1"]
[TimeControl "40/5400+30:1800+30"]

1. d4 {[%emt 0:00:00]} d5 {[%emt 0:02:08]} 2. Nf3 {[%emt 0:00:17]} Nf6 {[%emt 0:01:23]} 3. c4 {[%emt 0:01:25]} e6 {[%emt 0:02:37]} 4. Nc3 {[%emt 0:00:10]} Nc6 {[%emt 0:02:10]} 5. Bg5 {[%emt 0:01:11]} Be7 {[%emt 0:00:50]} 6. e3 {[%emt 0:00:47]} Ne4 {[%emt 0:04:10]} 7. Bxe7 {[%emt 0:00:33]} Qxe7 {[%emt 0:01:42]} 8. Nxe4 {[%emt 0:10:48]} dxe4 {[%emt 0:00:22]} 9. Nd2 {[%emt 0:00:04]} f5 {[%emt 0:01:17]} 10. a3 {[%emt 0:00:39]} O-O {[%emt 0:06:41]} 11. Qc2 {[%emt 0:01:38]} b6 {[%emt 0:04:26]} 12. Be2 {[%emt 0:07:07]} Bb7 {[%emt 0:02:10]} 13. b4 {[%emt 0:04:18]} Qg5 {[%emt 0:06:08]} 14. g3 {[%emt 0:03:53]} Rac8 {[%emt 0:08:54]} 15. b5 {[%emt 0:10:16]} Ne7 {[%emt 0:00:28]} 16. c5 {[%emt 0:02:57]} c6 {[%emt 0:03:27]} 17. a4 {[%emt 0:11:50]} Qf6 {[%emt 0:06:34]} 18. O-O {[%emt 0:01:13]} e5 {[%emt 0:00:21]} 19. Qb3+ {[%emt 0:16:29]} Kh8 {[%emt 0:01:28]} 20. Nc4 {[%emt 0:06:23]} exd4 {[%emt 0:01:14]} 21. exd4 {[%emt 0:00:12]} Nd5 {[%emt 0:09:20]} 22. Nd6 {[%emt 0:01:38]} Rc7 {[%emt 0:00:16]} 23. Nxb7 {[%emt 0:00:06]} Rxb7 {[%emt 0:00:14]} 24. bxc6 {[%emt 0:10:14]} Qxc6 {[%emt 0:00:40]} 25. Bb5 {[%emt 0:00:31]} Qe6 {[%emt 0:01:15]} 26. Bc4 {[%emt 0:01:04]} Rd8 {[%emt 0:00:15]} 27. Rab1 {[%emt 0:02:52]} Qc6 {[%emt 0:03:36]} 28. a5 {[%emt 0:01:53]} Nf6 {[%emt 0:03:11]} 29. Bb5 {[%emt 0:02:53]} Qc7 {[%emt 0:00:44]} 30. cxb6 {[%emt 0:00:46]} axb6 {[%emt 0:00:19]} 31. a6 {[%emt 0:00:14]} Ra7 {[%emt 0:00:49]} 32. Rbc1 {[%emt 0:00:48]} Qd6 {[%emt 0:01:17]} 33. Kg2 {[%emt 0:00:35]} Rb8 {[%emt 0:03:57]} 34. Rfd1 {[%emt 0:00:29]} f4 {[%emt 0:01:42]} 35. Rc6 {[%emt 0:00:36]} f3+ {[%emt 0:00:36]} 36. Kg1 {[%emt 0:00:16]} Qd8 {[%emt 0:03:31]} 37. Rdc1 {[%emt 0:00:16]} h6 {[%emt 0:01:47]} 38. Qe6 {[%emt 0:00:39]} Qxd4 {[%emt 0:03:03]} 39. Rc8+ {[%emt 0:00:35]} Rxc8 {[%emt 0:00:07]} 40. Qxc8+ {[%emt 0:00:00]} Kh7 {[%emt 0:00:00]} 41. h3 {[%emt 0:20:47]} Qb2 {[%emt 0:20:44]} 42. Bf1 {[%emt 0:02:55]} Nd7 {[%emt 0:05:44]} 43. Rc7 {[%emt 0:02:19]} Rxc7 {[%emt 0:09:25]} 44. Qxc7 {[%emt 0:00:07]} Nc5 {[%emt 0:01:20]} 45. a7 {[%emt 0:02:28]} e3 {[%emt 0:00:16]} 46. fxe3 {[%emt 0:05:11]} Nd3 {[%emt 0:00:49]} 47. Bxd3+ {[%emt 0:00:22]} Kg8 {[%emt 0:01:09]} 48. a8=R# 1-0

[Event "4th Memorial Warakomska-B 2020"]
[Site "Suwalki"]
[Date "2020.08.08"]
[Round "3.14"]
[White "Pietryk, Joanna"]
[Black "Rak, Tomasz"]
[Result "0-1"]
[ECO "B12"]
[WhiteElo "1329"]
[BlackElo "1879"]
[Annotator "NA RC"]
[PlyCount "48"]
[EventDate "2020.08.06"]
[EventType "swiss"]
[EventCountry "POL"]
[SourceTitle "playchess.com"]
[Source "ChessBase"]
[SourceQuality "1"]
[TimeControl "40/5400+30:1800+30"]

{[%evp 8,48,56,56,20,49,60,66,122,118,111,74,150,0,20,-39,-47,-116,-100,-87,-105,-295,-325,-389,-383,-370,-386,-502,-535,-553,-542,-544,-520,-500,-510,-551,-466,-948,-1054,-782,-925,-1870,-2927]} 1. e4 {[%emt 0:00:00]} c6 {[%emt 0:00:00]} 2. d4 {[%emt 0:00:00]} d5 {[%emt 0:00:00]} 3. e5 {[%emt 0:00:19]} Bf5 {[%emt 0:00:00]} 4. h4 {[%emt 0:01:22]} c5 {[%emt 0:01:19]} 5. dxc5 {[%emt 0:01:55]} Nc6 {[%emt 0:08:46]} 6. Bb5 {[%emt 0:08:52] B12: Caro-Kann: Advance Variation.} Qa5+ {[%emt 0:03:10]} 7. Nc3 {[%emt 0:01:16]} O-O-O {[%emt 0:02:22] [#]} (7... a6 $14 8. Bxc6+ bxc6) 8. Bxc6 $1 {[%emt 0:09:08]} bxc6 {[%emt 0:00:31] [#]} 9. Be3 $146 {[%emt 0:03:22]} ({Predecessor:} 9. Qd4 Bxc2 10. Nf3 e6 11. b4 Qa6 12. Qd2 Be4 13. Nd4 Bxg2 14. Rg1 Be4 15. Rg3 {0-1 (32) Harringer,F (2272)-Konnyu,J (2317) Austria 2013}) 9... f6 {[%emt 0:04:33]} (9... d4 $14 10. Bxd4 e6) 10. exf6 $2 {[%emt 0:12:24]} (10. Qd4 $16) 10... gxf6 {[%emt 0:01:04]} 11. g4 {[%emt 0:12:51]} Be4 {[%emt 0:02:19]} 12. f3 {[%emt 0:01:09]} d4 $1 {[%emt 0:07:32] Pin} 13. Bxd4 {[%emt 0:08:49]} e5 {[%emt 0:02:41]} 14. b4 $2 {[%emt 0:08:37]} (14. Qb1 $17 exd4 {[%mdl 64] Pin} 15. b4 Bxc2 16. bxa5 Bxb1 17. Nxb1) 14... Qxb4 {[%emt 0:00:44] Pin} 15. Rb1 {[%emt 0:00:29]} Qa5 {[%emt 0:00:31]} 16. fxe4 {[%emt 0:09:13]} exd4 {[%emt 0:01:01] Pin} 17. Nge2 {[%emt 0:02:07]} dxc3 {[%emt 0:02:25] Discovered Attack} 18. Qc1 {[%emt 0:00:37]} Bxc5 {[%emt 0:05:02]} 19. Qf4 {[%emt 0:02:05]} Bd6 {[%emt 0:00:38]} 20. Qf3 {[%emt 0:00:40]} Be5 {[%emt 0:02:25]} 21. g5 {[%emt 0:03:54]} Qc5 {[%emt 0:03:54]} 22. gxf6 {[%emt 0:03:12]} (22. Nf4 $142 Qd6 23. O-O) 22... Nxf6 {[%emt 0:00:35]} 23. Qf5+ {[%emt 0:01:20]} Nd7 {[%emt 0:00:45]} 24. Rh3 {[%emt 0:02:01]} Rhf8 $19 {[%emt 0:01:09]} 0-1

[Event "4th Memorial Warakomska-B 2020"]
[Site "Suwalki"]
[Date "2020.08.08"]
[Round "4.1"]
[White "Ciszewski, Krzysztof"]
[Black "Obolonin, Filipp"]
[Result "1/2-1/2"]
[ECO "E43"]
[WhiteElo "1728"]
[BlackElo "1922"]
[Annotator "ChessBase"]
[PlyCount "53"]
[EventDate "2020.08.06"]
[EventType "swiss"]
[EventCountry "POL"]
[SourceTitle "playchess.com"]
[Source "ChessBase"]
[SourceQuality "1"]
[TimeControl "40/5400+30:1800+30"]

1. d4 Nf6 {[%emt 0:03:07]} 2. c4 {[%emt 0:00:00]} e6 {[%emt 0:00:04]} 3. Nc3 {[%emt 0:00:00]} Bb4 {[%emt 0:00:06]} 4. e3 {[%emt 0:00:00]} b6 {[%emt 0:00:06]} 5. f3 {[%emt 0:00:14]} Bb7 {[%emt 0:00:11]} 6. Bd3 {[%emt 0:00:47]} c5 {[%emt 0:00:08]} 7. Nge2 {[%emt 0:01:36]} cxd4 {[%emt 0:00:22]} 8. exd4 {[%emt 0:00:09]} d5 {[%emt 0:00:06]} 9. cxd5 {[%emt 0:04:27]} Nxd5 {[%emt 0:00:19]} 10. O-O {[%emt 0:00:46]} Nd7 {[%emt 0:00:11]} 11. Qa4 {[%emt 0:05:43]} Be7 {[%emt 0:03:15]} 12. Nxd5 {[%emt 0:05:48]} Bxd5 {[%emt 0:00:08]} 13. Nc3 {[%emt 0:01:02]} Bb7 {[%emt 0:00:14]} 14. Be4 {[%emt 0:03:30]} Bxe4 {[%emt 0:00:22]} 15. fxe4 {[%emt 0:00:28]} O-O {[%emt 0:00:07]} 16. e5 {[%emt 0:00:39]} a6 {[%emt 0:00:04]} 17. Qd1 {[%emt 0:04:58]} b5 {[%emt 0:00:56]} 18. Qg4 {[%emt 0:00:48]} Kh8 {[%emt 0:00:37]} 19. Rf3 {[%emt 0:13:32]} f5 {[%emt 0:01:08]} 20. exf6 {[%emt 0:10:45]} Nxf6 {[%emt 0:00:14]} 21. Qxe6 {[%emt 0:01:49]} Qxd4+ {[%emt 0:00:10]} 22. Be3 {[%emt 0:00:51]} Qd6 {[%emt 0:00:05]} 23. Qxd6 {[%emt 0:01:42]} Bxd6 {[%emt 0:00:05]} 24. Rd1 {[%emt 0:01:32]} Be5 {[%emt 0:00:08]} 25. Bd4 {[%emt 0:01:12]} Bxd4+ {[%emt 0:00:19]} 26. Rxd4 {[%emt 0:00:08]} h6 {[%emt 0:00:36]} 27. Rfd3 {[%emt 0:06:02]} 1/2-1/2